bitfinex/quotes_ETHUSD_20220308
["timestamp","ask_amount","ask_price","bid_price","bid_amount"]
[1646749435515,0.97067804,2587.5,2586.7,2.55380901]
[1646749435704,0.3,2587.4,2586.8,1.58242625]
[1646749435904,0.00390441,2587.3,2587.1,1.1296942]
[1646749436103,0.00390441,2587.3,2587.2,1.58242625]
[1646749436904,0.3,2587.6,2587.2,1.58242625]
[1646749437204,0.00390456,2587.4,2587.2,1.58242625]
[1646749438006,0.3,2587.6,2587.2,1.58242625]
[1646749438206,0.96672,2587.6,2587.4,0.01055295]
[1646749438606,1.26672,2587.6,2587.4,0.01055295]
[1646749439659,1.27062654,2587.6,2587.4,0.01055295]
[1646749440561,0.3,2587.6,2587.4,0.01055295]
[1646749440760,0.30390654,2587.6,2587.4,0.01055295]
[1646749440966,0.00390654,2587.6,2587.4,0.01055295]
[1646749441162,0.30390654,2587.6,2587.4,0.01055295]
[1646749441364,0.00390654,2587.6,2587.4,0.01055295]
[1646749441862,17.4573797,2588.0,2587.4,0.01055295]
[1646749441863,17.44175589,2588.0,2587.4,0.01055295]
[1646749442063,0.00390654,2587.6,2587.4,0.01055295]
[1646749442472,0.00390654,2587.6,2587.2,1.02272392]
[1646749442664,0.00390654,2587.6,2587.3,1.58235018]
[1646749442864,0.3,2587.6,2587.3,1.58235018]
[1646749443102,0.3,2587.8,2587.3,1.58235018]
[1646749443303,0.00394594,2587.5,2587.3,1.58235018]
[1646749444104,0.3,2587.8,2587.3,1.58235018]
[1646749444507,0.00394594,2587.5,2587.3,1.58235018]
[1646749445308,0.3,2587.8,2587.3,1.58235018]
[1646749445709,0.00394594,2587.5,2587.3,1.58235018]
[1646749446509,0.3,2587.8,2587.3,1.58235018]
[1646749446752,0.00390051,2587.5,2587.3,1.58235018]
[1646749447164,0.00390051,2587.5,2587.4,0.71017784]
[1646749447757,0.00096,2588.5,2587.4,1.96975018]
[1646749447956,3.63819996,2588.6,2587.5,2.29277701]
[1646749447957,0.00390051,2587.6,2587.5,2.29277701]
[1646749448153,0.00390051,2587.6,2587.5,1.58235018]
[1646749448954,0.00390051,2587.6,2587.5,2.29264562]
[1646749449152,0.00390051,2587.7,2587.5,2.29264562]
[1646749449356,0.00390051,2587.7,2587.5,1.58235018]
[1646749449659,0.00390051,2587.7,2587.6,1.58235018]
[1646749449857,0.00390051,2587.7,2587.3,1.58228538]
[1646749450157,12.20299969,2588.1,2587.6,0.8679346]
[1646749450158,15.68836,2588.1,2587.6,0.8679346]
[1646749450522,0.0039071,2587.8,2587.7,1.58228538]
[1646749451111,12.1913071,2587.8,2587.7,1.58228538]
[1646749451314,12.1874,2587.8,2587.1,1.58228538]
[1646749451510,13.1874,2587.8,2587.2,1.58228538]
[1646749451711,13.1874,2587.8,2587.3,1.58228538]
[1646749451910,13.1874,2587.8,2587.4,2.79374526]
[1646749452111,0.96669,2587.7,2587.5,1.58228538]
[1646749452312,1.26669,2587.7,2587.5,1.58228538]
[1646749452914,1.2705971,2587.7,2587.5,1.58228538]
[1646749453315,0.3039071,2587.7,2587.5,1.58228538]
[1646749453714,0.3,2587.8,2587.5,1.58228538]
[1646749454116,0.0039061,2587.7,2587.5,1.58228538]
[1646749454959,0.3,2587.8,2587.5,1.58228538]
[1646749455161,0.0039061,2587.7,2587.5,1.58228538]
[1646749456161,0.3,2587.8,2587.5,1.58228538]
[1646749456361,0.0039061,2587.7,2587.5,1.58228538]
[1646749457164,0.9705161,2587.7,2587.5,1.58228538]
[1646749457361,0.96661,2587.7,2587.6,1.58228538]
[1646749457562,0.30390626,2587.7,2587.6,1.58228538]
[1646749457764,0.00390626,2587.7,2587.1,2.29258082]
[1646749458018,0.00390626,2587.7,2587.2,1.58228538]
[1646749458209,0.00390626,2587.7,2587.3,1.58228538]
[1646749458413,0.00390626,2587.7,2587.4,1.58228538]
[1646749458611,0.3,2587.8,2586.7,0.71029544]
[1646749458612,12.1874,2587.4,2586.7,0.71029544]
[1646749458809,12.1874,2587.2,2586.7,1.58266543]
[1646749459010,11.8,2587.0,2586.7,1.58266543]
[1646749459210,12.1,2587.0,2586.8,1.58266543]
[1646749459412,12.1,2587.0,2586.9,6.543e-05]
[1646749459413,13.45443,2587.0,2586.9,6.543e-05]
[1646749459615,11.8,2586.8,2586.2,0.71029544]
[1646749459816,12.568,2586.8,2586.1,0.71029544]
[1646749460015,13.568,2586.8,2586.1,0.71029544]
[1646749460418,3.5,2586.7,2586.1,0.71029544]
[1646749460817,4.968,2586.7,2586.1,0.71029544]
[1646749461021,3.968,2586.7,2586.1,0.71029544]
[1646749461218,4.968,2586.7,2586.1,0.71029544]
[1646749461417,16.768,2586.7,2586.1,0.71029544]
[1646749461616,17.73517,2586.7,2586.1,0.71029544]
[1646749461860,12.4874,2586.6,2586.0,0.71029544]
[1646749462059,12.1874,2586.4,2585.7,0.71029544]
[1646749462259,11.8,2586.2,2585.7,0.71029544]
[1646749462459,11.8,2586.2,2585.5,0.71029544]
[1646749462460,11.8,2586.0,2585.5,0.71029544]
[1646749462661,3.968,2585.9,2585.4,0.71442525]
[1646749462859,11.54669344,2585.9,2585.4,0.71442525]
[1646749463059,12.84669344,2585.9,2585.4,0.71442525]
[1646749463462,12.84669344,2585.9,2585.4,0.71029544]
[1646749463664,4.6705583,2585.9,2585.4,0.00413859]
[1646749463860,3.70307,2585.9,2585.4,0.00413859]
[1646749464062,3.03551,2585.9,2585.4,0.71443403]
[1646749464261,2.03551,2585.9,2585.5,1.16396819]
[1646749464465,2.03551,2585.9,2585.5,1.87426363]
[1646749464466,2.73551,2585.9,2585.5,1.87426363]
[1646749464668,2.73551,2585.9,2585.5,1.16396819]
[1646749464868,1.73551,2585.9,2585.5,1.16396819]
[1646749465068,0.3,2585.9,2585.5,1.16396819]
[1646749465709,0.96725,2586.1,2585.5,1.16396819]
[1646749465710,1.26725,2586.1,2585.5,1.16396819]
[1646749465909,13.45465,2586.1,2585.4,0.71029544]
[1646749466109,13.45465,2586.1,2585.4,0.00413687]
[1646749466312,0.96736,2586.0,2585.4,0.00413687]
[1646749466511,0.3,2585.9,2585.4,0.00413687]
[1646749466710,1.95465,2586.1,2585.4,0.00413687]
[1646749466910,1.65465,2586.1,2585.4,1.87632865]
[1646749467110,0.6874,2586.1,2585.4,1.87632865]
[1646749467310,0.6874,2586.1,2585.4,1.88046413]
[1646749467711,0.6874,2586.1,2585.4,1.17016869]
[1646749468110,0.6874,2586.1,2585.3,5.71029544]
[1646749468513,0.6874,2586.1,2585.4,0.00413552]
[1646749468916,1.3,2586.2,2585.4,0.00413552]
[1646749469111,0.3,2586.2,2585.6,0.89061173]
[1646749469362,4.00249,2586.3,2585.6,0.89061173]
[1646749469560,2.08372449,2586.3,2585.6,0.89061173]
[1646749469759,0.78372449,2586.3,2585.6,0.89061173]
[1646749469959,1.17112449,2586.3,2585.6,0.89061173]
[1646749470560,1.1554,2586.3,2585.6,0.89061173]
[1646749470761,0.768,2586.3,2585.6,0.89061173]
[1646749471364,0.3,2586.3,2585.6,1.27801173]
[1646749471666,0.01668449,2586.5,2585.6,1.98830717]
[1646749471866,0.13819996,2586.6,2585.8,1.09769544]
[1646749472062,0.01572449,2586.5,2585.8,0.3874]
[1646749472462,0.01572449,2586.5,2586.2,1.00312981]
[1646749473108,0.00096,2586.9,2586.2,1.00312981]
[1646749473309,0.01572362,2586.9,2586.2,1.00312981]
[1646749473907,0.98271362,2586.9,2586.2,1.00312981]
[1646749474109,0.96699,2586.9,2586.2,1.00312981]
[1646749475818,3.534043,2587.0,2586.2,1.39052981]
[1646749475819,0.6,2587.0,2586.2,1.39052981]
[1646749476013,0.01572362,2587.1,2586.2,1.39052981]
[1646749476414,0.01572362,2587.1,2586.6,0.97017384]
[1646749476613,1.0,2587.3,2586.6,0.97017384]
[1646749476860,1.0,2587.3,2586.0,1.09769544]
[1646749476861,0.01572339,2587.2,2586.0,1.09769544]
[1646749477057,3.51668339,2587.2,2586.0,0.3874]
[1646749477257,0.01668339,2587.2,2586.0,0.3874]
[1646749477457,0.01668339,2587.2,2585.8,1.01029544]
[1646749477458,0.31668339,2587.2,2585.8,1.01029544]
[1646749477658,11.81668339,2587.2,2585.9,0.3874]
[1646749477858,11.81668339,2587.2,2585.9,1.09769544]
[1646749477859,11.80096,2587.2,2585.9,1.09769544]
[1646749478060,14.18581483,2587.1,2586.2,1.16885255]
[1646749478259,14.18581483,2587.1,2585.8,0.71029544]
[1646749478260,17.2340222,2587.0,2585.8,0.71029544]
[1646749478460,17.9543922,2587.0,2585.7,9.278]
[1646749478659,0.00096,2586.9,2585.7,9.278]
[1646749478861,12.1874,2586.8,2585.7,9.278]
[1646749479059,12.1874,2586.8,2585.6,7.3806]
[1646749479060,13.1545,2586.7,2585.6,7.3806]
[1646749479260,11.8,2586.5,2585.6,6.175]
[1646749479468,11.75,2586.5,2585.9,1.14613542]
[1646749479666,11.75,2586.5,2586.0,1.58300061]
[1646749480067,1.26717,2586.6,2586.0,1.58300061]
[1646749480266,4.76717,2586.6,2586.0,1.58300061]
[1646749480523,0.3,2586.6,2586.0,1.58300061]
[1646749480708,4.81668344,2586.8,2586.0,1.58300061]
[1646749480909,1.31572344,2586.8,2586.0,1.58300061]
[1646749481111,14.21542847,2586.7,2586.0,1.58300061]
[1646749481310,15.9874,2586.6,2586.1,1.58300061]
[1646749481509,0.6874,2586.6,2586.2,1.58300061]
[1646749481712,0.6874,2586.6,2585.5,2.29329605]
[1646749481910,4.1874,2586.6,2585.6,1.58295496]
[1646749482114,0.68836,2586.6,2585.7,1.58295496]
[1646749482316,0.9671772,2586.5,2585.8,1.58295496]
[1646749482612,0.9671772,2586.5,2585.9,1.58295496]
[1646749482811,0.9671772,2586.5,2586.0,1.58295496]
[1646749482812,0.96717,2586.4,2586.0,1.58295496]
[1646749483012,0.9671772,2586.5,2586.0,1.58295496]
[1646749483213,0.3,2586.6,2586.0,1.58295496]
[1646749485565,0.9672,2586.4,2586.1,1.58295496]
[1646749485765,1.2672,2586.4,2586.2,1.58295496]
[1646749485964,1.2672,2586.4,2585.5,0.71029544]
[1646749485965,0.3,2586.4,2585.5,0.71029544]
[1646749486366,0.00096,2586.6,2585.5,2.29322168]
[1646749486565,1.2679894,2586.7,2585.6,0.71029544]
[1646749486765,0.30096,2586.7,2585.6,0.71029544]
[1646749486965,0.30096,2586.7,2585.6,1.09769544]
[1646749487165,0.01572355,2586.8,2586.4,0.87536129]
[1646749487166,0.01668355,2586.8,2586.4,0.87536129]
[1646749487368,0.89410763,2586.9,2586.4,0.87536129]
[1646749487369,0.89410763,2586.9,2586.5,1.58292624]
[1646749487765,0.01572399,2586.7,2586.5,1.58292624]
[1646749488015,0.89410763,2586.9,2586.7,0.02515377]
[1646749488406,0.3,2586.9,2586.7,0.02515377]
[1646749488606,1.26696,2587.1,2586.7,0.02515377]
[1646749488806,2.5338884,2587.1,2586.7,0.02515377]
[1646749489206,3.5338884,2587.1,2586.7,0.02515377]
[1646749489411,1.5669284,2587.1,2586.7,0.02515377]
[1646749489610,2.5669284,2587.1,2586.7,0.02515377]
[1646749489810,1.5669284,2587.1,2586.7,0.02515377]
[1646749490410,13.3669284,2587.1,2586.7,0.02515377]
[1646749490610,14.3339184,2587.1,2586.7,0.02515377]
[1646749490812,15.7213184,2587.1,2586.7,0.02515377]
[1646749491415,0.3874,2586.9,2586.7,0.02515377]
[1646749491614,15.768,2586.8,2586.7,0.02515377]
[1646749491860,16.068,2586.8,2586.7,0.02515377]
[1646749492059,17.068,2586.8,2586.7,0.02515377]
[1646749496308,17.4554,2586.8,2586.7,0.02515377]
[1646749497310,0.3,2586.8,2586.7,0.02515377]
[1646749497508,0.60457362,2586.9,2586.7,1.60795551]
[1646749497713,0.00457362,2586.9,2586.8,1.58280174]
[1646749497918,0.30457362,2586.9,2586.8,1.58280174]
[1646749498113,0.3,2586.9,2586.8,1.58280174]
[1646749498314,15.81366474,2587.4,2586.8,1.58280174]
[1646749498515,0.00457349,2587.0,2586.8,1.58280174]
[1646749499366,1.95303047,2587.5,2586.8,1.58280174]
[1646749499367,0.00096,2587.5,2586.8,1.58280174]
[1646749499567,1.1786,2587.7,2586.8,1.58280174]
[1646749499768,0.00139791,2587.0,2586.9,1.1264665]
[1646749499965,0.00139791,2587.0,2586.9,2.70926824]
[1646749500469,0.96764,2587.6,2586.9,1.58280174]
[1646749500470,12.18836,2587.6,2586.9,1.58280174]
[1646749500669,12.1874,2587.4,2586.7,0.02515377]
[1646749500870,0.00434162,2587.1,2586.8,1.58283948]
[1646749501071,12.6554,2587.0,2586.7,0.02515377]
[1646749501269,12.6554,2587.0,2586.2,0.00434303]
[1646749501270,12.1874,2586.6,2586.2,0.00434303]
[1646749501469,1.0,2586.9,2586.3,1.58312508]
[1646749501471,12.1874,2586.4,2586.3,1.58312508]
[1646749501676,12.6554,2586.4,2586.2,0.00434303]
[1646749501870,12.1874,2586.2,2585.5,0.71029544]
[1646749502069,11.8,2586.0,2585.4,2.29354857]
[1646749502270,13.7351506,2585.9,2585.5,1.58325313]
[1646749502473,11.8,2585.8,2585.4,2.29354857]
[1646749502670,14.7027306,2585.9,2585.5,1.58325313]
[1646749502870,18.2377606,2585.9,2585.6,1.58325313]
[1646749503115,0.96310493,2585.8,2585.7,1.58325313]
[1646749503313,12.1874,2585.7,2585.4,1.58325313]
[1646749503513,12.1874,2585.5,2585.4,1.58325313]
[1646749503715,12.6554,2585.5,2585.4,1.58325313]
[1646749503913,13.9554,2585.5,2585.4,1.58325313]
[1646749504315,13.568,2585.5,2585.4,1.58325313]
[1646749504919,13.568,2585.5,2584.7,0.71029544]
[1646749505217,11.8,2584.9,2584.6,2.29392271]
[1646749505417,12.7678088,2584.9,2584.7,1.58362727]
[1646749505621,14.9232088,2584.9,2584.6,1.58362727]
[1646749505816,14.9232088,2584.9,2584.7,1.58362727]
[1646749506119,19.74356738,2584.9,2584.8,1.58362727]
[1646749506317,11.8,2584.7,2584.3,0.8756]
[1646749506516,12.268,2584.6,2584.4,1.583916]
[1646749506959,14.2359911,2584.6,2584.4,1.583916]
[1646749507261,11.8,2584.5,2584.4,1.583916]
[1646749507459,13.2361,2584.5,2584.4,1.583916]
[1646749507660,14.2361,2584.5,2584.4,1.583916]
[1646749507861,2.4361,2584.5,2584.4,1.583916]
[1646749508062,0.74656225,2584.5,2584.4,1.583916]
[1646749508265,18.2085511,2584.6,2584.4,1.583916]
[1646749508462,0.468,2584.5,2584.4,1.583916]
[1646749509063,0.96804,2584.7,2584.4,5.083916]
[1646749509261,0.96804,2584.7,2584.5,1.583916]
[1646749509465,0.96804,2584.7,2584.6,1.5776]
[1646749509665,0.96804,2584.7,2584.3,0.88027222]
[1646749509865,0.96804,2584.7,2584.3,1.95811735]
[1646749510366,0.96804,2584.7,2584.3,1.95344513]
[1646749510623,2.23562,2584.6,2584.4,0.00467216]
[1646749510821,2.23562,2584.6,2584.4,0.07251579]
[1646749511418,2.23562,2584.6,2584.4,0.06784363]
[1646749511619,2.23562,2584.6,2584.4,0.07251579]
[1646749511821,3.50349,2584.6,2584.4,0.00467216]
[1646749512020,3.50349,2584.6,2584.3,0.8756]
[1646749512021,11.8,2584.4,2584.3,0.8756]
[1646749512223,16.068,2584.4,2584.3,0.25948419]
[1646749512419,11.8,2584.2,2583.2,0.71029544]
[1646749512623,11.8,2584.0,2583.0,0.71029544]
[1646749512820,0.96842,2583.5,2582.8,7.90013371]
[1646749513019,0.96843,2583.4,2582.8,1.09913827]
[1646749513219,0.3,2583.3,2582.8,1.09913827]
[1646749513421,0.3,2583.3,2582.8,1.48653827]
[1646749513621,0.3,2584.1,2582.9,1.09769544]
[1646749513622,1.26801,2584.1,2582.9,1.09769544]
[1646749513822,0.96801,2584.1,2582.9,1.09769544]
[1646749514020,0.3,2584.0,2583.1,0.3874]
[1646749514261,3.23602,2584.3,2583.1,0.3874]
[1646749514466,3.39316402,2584.3,2583.1,0.3874]
[1646749514665,12.76794,2584.2,2583.1,0.3874]
[1646749514967,17.23625,2584.1,2582.9,1.09769544]
[1646749515165,17.53625,2584.1,2582.9,1.09769544]
[1646749515466,17.53625,2584.1,2582.9,0.3874]
[1646749515467,0.9681781,2584.0,2582.9,0.3874]
[1646749515667,0.96813,2583.9,2583.1,1.04302468]
[1646749516166,1.26813,2583.9,2583.1,1.04302468]
[1646749516365,0.96813,2583.9,2583.1,1.04302468]
[1646749516566,1.26813,2583.9,2583.4,0.0046696]
[1646749516767,1.28669428,2583.9,2583.4,0.0046696]
[1646749517167,0.98669428,2583.9,2583.4,0.0046696]
[1646749517366,1.28669428,2583.9,2583.4,0.0046696]
[1646749517567,1.28669428,2583.9,2583.1,1.43042468]
[1646749517768,0.98669428,2583.9,2583.5,0.00466941]
[1646749518024,1.28669428,2583.9,2583.5,0.00466941]
[1646749518713,1.28669428,2583.9,2583.1,1.04302468]
[1646749518914,1.28669428,2583.9,2583.6,0.00466935]
[1646749518915,0.01856428,2583.9,2583.6,0.00466935]
[1646749520018,0.01856428,2583.9,2583.6,1.12120211]
[1646749520220,0.01856428,2583.9,2583.6,1.12587139]
[1646749520419,0.01856428,2583.9,2583.6,0.00466928]
[1646749521022,0.01856428,2583.9,2583.3,0.3874]
[1646749521421,0.01856428,2583.9,2583.6,0.00466928]
[1646749522361,0.01856428,2583.9,2583.3,1.57897144]
[1646749522560,0.01856428,2583.9,2583.6,0.00466928]
[1646749523569,0.01856428,2583.9,2583.0,4.5]
[1646749523764,0.01856428,2583.9,2583.6,0.00466928]
[1646749524165,0.98670428,2583.9,2583.6,0.00466928]
[1646749524568,1.95485428,2583.9,2583.6,0.00466928]
[1646749524768,0.98670428,2583.9,2583.6,0.00466928]
[1646749524967,0.98670428,2583.9,2583.6,0.00918448]
[1646749524968,1.58670428,2583.9,2583.6,0.00918448]
[1646749525168,1.58670428,2583.9,2583.6,0.0045152]
[1646749525714,1.43376401,2583.7,2583.6,0.0045152]
[1646749525916,1.43376401,2583.7,2582.5,0.3874]
[1646749525917,0.96852,2583.4,2582.5,0.3874]
[1646749526314,0.3,2583.3,2582.2,7.89338264]
[1646749526713,0.9685028,2583.2,2582.3,1.02678318]
[1646749527113,0.3,2583.1,2582.3,1.02678318]
[1646749528321,0.96843,2583.2,2582.3,1.02678318]
[1646749528519,0.96843,2583.2,2582.2,7.87647485]
[1646749528723,0.96843,2583.2,2582.6,0.00434892]
[1646749529119,0.9683717,2583.3,2582.6,0.00434892]
[1646749529374,0.3,2583.2,2582.6,0.00434892]
[1646749529573,1.96837,2583.4,2582.6,1.07591755]
[1646749529574,0.3,2583.3,2582.6,1.07591755]
[1646749529973,0.3,2583.3,2582.8,0.00434863]
[1646749530172,1.95494428,2583.9,2582.8,0.00434863]
[1646749530173,0.3,2583.4,2582.8,0.00434863]
[1646749530376,0.96829,2583.5,2582.8,0.00434863]
[1646749530573,3.4045406,2583.8,2582.8,0.00434863]
[1646749530574,0.9682506,2583.8,2582.8,0.00434863]
[1646749530774,0.01856428,2583.9,2583.6,1.19757221]
[1646749530975,0.3869,2584.6,2583.6,1.19757221]
[1646749531176,0.3874,2584.7,2583.6,1.19757221]
[1646749531377,0.58746008,2584.8,2583.6,1.19757221]
[1646749531579,0.468,2585.1,2583.7,3.8874]
[1646749531776,1.56850718,2585.3,2583.7,3.8874]
[1646749531976,0.56850718,2585.3,2583.7,3.8874]
[1646749532176,13.84687269,2585.3,2584.4,1.16783501]
[1646749532577,13.84687269,2585.3,2584.3,0.00435097]
[1646749532777,3.34687269,2585.3,2584.3,0.00435097]
[1646749533029,2.39096551,2585.3,2584.3,0.00435097]
[1646749533217,0.13819996,2585.5,2583.9,0.3874]
[1646749533418,0.13819996,2585.5,2584.3,0.00435118]
[1646749533621,1.0,2585.6,2584.3,0.39175118]
[1646749533820,1.0,2585.6,2584.5,0.3874]
[1646749534023,1.0,2585.6,2584.7,0.3874]
[1646749534218,1.0,2585.6,2585.4,0.99791366]
[1646749534624,1.0,2585.6,2584.8,0.3874]
[1646749535026,0.0173961,2585.7,2584.8,0.3874]
[1646749535226,0.0173961,2585.7,2584.6,0.3874]
[1646749535628,0.17727531,2586.0,2584.5,2.93461]
[1646749535629,1.09856763,2585.9,2584.9,0.91715168]
[1646749535827,0.9674804,2585.8,2584.9,0.91715168]
[1646749536028,0.01916532,2585.3,2584.9,0.91715168]
[1646749536429,0.01916532,2585.3,2584.3,0.00435105]
[1646749536863,0.01916532,2585.3,2583.7,11.8]
[1646749536864,0.01916532,2585.3,2583.7,14.73521]
[1646749537063,0.01916532,2585.3,2584.3,11.8]
[1646749537265,0.01916532,2585.3,2584.4,1.9714251]
[1646749537464,0.01916532,2585.3,2584.6,0.3874]
[1646749538070,0.01916532,2585.3,2584.7,1.9343696]
[1646749538269,0.01916532,2585.3,2584.8,1.50879728]
[1646749538672,0.01916532,2585.3,2584.9,1.583615]
[1646749538869,0.01916532,2585.3,2584.9,2.583615]
[1646749539069,0.01916532,2585.3,2585.0,1.583615]
[1646749539271,0.01916532,2585.3,2585.0,2.8506392]
[1646749539469,0.01916532,2585.3,2585.0,1.5670242]
[1646749539671,0.01916532,2585.3,2585.0,1.2670242]
[1646749539869,0.01916532,2585.3,2585.0,0.9670242]
[1646749540525,0.01916532,2585.3,2585.1,1.58355674]
[1646749542812,0.01916532,2585.3,2585.0,1.0]
[1646749543012,0.01916532,2585.3,2584.9,1.93403]
[1646749543013,0.01916532,2585.3,2584.9,1.0]
[1646749543211,0.01916532,2585.3,2585.0,1.58369482]
[1646749543412,0.01916532,2585.3,2584.8,1.12139728]
[1646749543615,0.01916532,2585.3,2584.9,1.58376621]
[1646749544017,0.01916532,2585.3,2584.9,3.51817621]
[1646749544275,0.01916532,2585.3,2585.0,1.58376621]
[1646749544877,0.01916532,2585.3,2585.0,2.55086621]
[1646749545077,0.01916532,2585.3,2585.1,1.58376621]
[1646749547282,0.01916532,2585.3,2585.2,3.0]
[1646749547581,0.01739452,2585.7,2585.3,1.93352]
[1646749547781,0.3869,2586.9,2585.5,0.3874]
[1646749547782,0.00096,2586.8,2585.5,0.3874]
[1646749548031,0.0173943,2585.8,2585.7,1.93358]
[1646749548224,0.3869,2586.9,2586.3,0.03175127]
[1646749548424,0.00096,2586.8,2586.3,0.03175127]
[1646749548625,0.3869,2586.9,2586.3,0.03175127]
[1646749549026,0.6869,2586.9,2586.7,1.02912167]
[1646749549728,0.3874,2587.2,2586.7,1.02912167]
[1646749550127,0.3,2587.0,2586.7,1.99589167]
[1646749550328,0.3,2587.0,2586.7,1.32912167]
[1646749550525,1.52559996,2587.6,2586.7,1.02912167]
[1646749550526,0.00096,2587.5,2586.7,1.02912167]
[1646749550727,0.00434726,2587.1,2586.7,1.02912167]
[1646749551329,0.01834645,2587.5,2586.6,0.3]
[1646749551330,0.00096,2587.5,2586.6,0.3]
[1646749551530,12.32559996,2587.6,2586.3,0.03175127]
[1646749551773,0.30139221,2587.0,2586.3,0.03175127]
[1646749551972,12.1874,2586.9,2586.3,0.03175127]
[1646749552170,12.1874,2586.7,2586.3,0.03175127]
[1646749552873,12.1874,2586.5,2586.3,0.03175127]
[1646749553071,12.6554,2586.4,2586.3,0.03175127]
[1646749553271,1.00096,2587.0,2586.3,0.03175127]
[1646749553474,0.335528,2587.1,2586.3,0.03175127]
[1646749553672,0.334568,2587.1,2586.3,0.03175127]
[1646749553871,0.334568,2587.1,2586.3,1.96539127]
[1646749554076,0.329,2587.1,2586.3,1.96539127]
[1646749554373,0.329,2587.1,2586.8,0.94391174]
[1646749554772,0.329,2587.1,2586.6,0.96685]
[1646749554976,0.329,2587.1,2586.3,1.96539127]
[1646749555172,0.63027932,2587.1,2586.3,1.96539127]
[1646749555818,0.63027932,2587.1,2586.5,0.9669]
[1646749556019,0.02408623,2586.7,2586.5,0.9669]
[1646749557217,0.02408623,2586.7,2586.5,2.09268407]
[1646749557820,0.02834717,2586.7,2586.5,2.09268407]
[1646749558618,0.02408623,2586.7,2586.5,2.09268407]
[1646749559018,0.02870989,2586.7,2586.5,2.09268407]
[1646749559866,0.02870989,2586.7,2586.5,1.12578407]
[1646749559867,0.02408623,2586.7,2586.5,1.12578407]
[1646749560267,0.02870989,2586.7,2586.5,1.12578407]
[1646749560467,0.02870989,2586.7,2586.3,0.03175127]
[1646749561067,0.3874,2586.6,2586.3,0.03175127]
[1646749561268,0.6874,2586.6,2586.3,0.03175127]
[1646749561469,0.30462366,2586.6,2586.3,0.03175127]
[1646749561869,0.00462366,2586.6,2586.3,0.03175127]
[1646749562269,0.32408623,2586.7,2586.3,0.03175127]
[1646749562270,0.02408623,2586.7,2586.3,0.03175127]
[1646749562471,0.32408623,2586.7,2586.3,0.03175127]
[1646749562673,0.00375237,2586.6,2586.3,0.03175127]
[1646749563517,0.02408623,2586.7,2586.3,0.03175127]
[1646749563717,0.00375237,2586.6,2586.3,0.03175127]
[1646749565922,0.02408623,2586.7,2586.3,0.03175127]
[1646749566122,0.00375237,2586.6,2586.3,0.03175127]
[1646749566764,12.6554,2586.5,2586.3,0.03175127]
[1646749567164,12.9554,2586.5,2586.3,0.03175127]
[1646749567363,13.9554,2586.5,2586.3,0.03175127]
[1646749567563,15.01303314,2586.5,2586.3,0.03175127]
[1646749567966,13.15478,2586.4,2586.3,5.127e-05]
[1646749568167,13.15478,2586.4,2585.8,0.00414499]
[1646749568168,12.1874,2586.2,2585.8,0.00414499]
[1646749568372,0.3874,2586.0,2584.4,3.8874]
[1646749568569,0.8554,2586.0,2585.8,0.00414496]
[1646749568768,1.1554,2586.0,2585.8,0.00414496]
[1646749569471,1.1554,2586.0,2585.2,1.19920845]
[1646749569670,1.1554,2586.0,2585.8,0.00414474]
[1646749570169,0.768,2586.0,2585.8,0.00414474]
[1646749570614,1.1554,2586.0,2585.2,1.19920845]
[1646749571110,1.1554,2586.0,2585.8,0.00413384]
[1646749571914,1.35494,2585.9,2584.6,1.58359831]
[1646749572113,1.35494,2585.9,2585.8,0.00413384]
[1646749572515,0.96758,2585.8,2585.1,1.06644855]
[1646749572714,1.65494,2585.9,2585.8,0.72159015]
[1646749573313,0.3874,2585.9,2585.8,0.72159015]
[1646749576774,12.1874,2585.9,2585.8,0.42990761]
[1646749576974,12.1874,2585.9,2584.6,0.71029544]
[1646749576975,14.12305,2585.7,2584.6,0.71029544]
[1646749577175,14.12305,2585.7,2584.7,1.58372911]
[1646749577176,0.3,2585.0,2584.7,1.58372911]
[1646749577374,17.32675,2585.7,2584.8,1.58372911]
[1646749577375,17.82685,2585.7,2584.8,1.58372911]
[1646749577574,17.82685,2585.7,2584.5,1.58372911]
[1646749577774,0.3,2585.0,2584.7,1.16713767]
[1646749578028,18.86674659,2585.7,2584.8,1.58372911]
[1646749578029,0.3874,2585.5,2584.8,1.58372911]
[1646749578221,0.967853,2585.3,2584.8,1.58372911]
[1646749578626,0.967853,2585.3,2584.5,0.71029544]
[1646749578627,0.96787,2585.0,2584.4,2.29402455]
[1646749578826,0.96787,2585.0,2584.5,1.58372911]
[1646749579025,0.96787,2585.0,2584.6,1.58372911]
[1646749579223,0.96787,2585.0,2584.7,1.58372911]
[1646749579422,0.96787,2585.0,2584.8,1.58372911]
[1646749579622,0.96787,2585.0,2584.0,0.71029544]
[1646749579829,13.45527,2585.0,2583.9,2.29436198]
[1646749580024,13.45527,2585.0,2584.0,1.58406654]
[1646749580222,2.65527,2585.0,2584.1,1.58406654]
[1646749580423,2.65527,2585.0,2584.2,1.58406654]
[1646749580424,14.45527,2585.0,2584.2,1.58406654]
[1646749580627,14.45527,2585.0,2584.3,1.58406654]
[1646749580628,1.02748095,2584.7,2584.3,1.58406654]
[1646749580824,1.02748095,2584.7,2583.5,0.71029544]
[1646749580825,12.1874,2584.5,2583.5,0.71029544]
[1646749581032,12.1874,2584.3,2583.3,0.71029544]
[1646749581325,12.1874,2584.1,2583.1,0.71029544]
[1646749581527,11.8,2583.7,2582.6,0.71029544]
[1646749581777,11.8,2583.7,2582.5,0.71029544]
[1646749581778,0.3,2583.0,2582.5,0.71029544]
[1646749581973,12.6554,2583.1,2582.4,0.99901549]
[1646749582173,12.6554,2583.1,2582.2,0.01866811]
[1646749582474,13.1874,2582.9,2582.2,0.01866811]
[1646749582775,15.12505,2582.9,2582.0,0.71029544]
[1646749582973,15.12505,2582.9,2582.5,0.00466582]
[1646749583877,15.12505,2582.9,2582.1,0.71029544]
[1646749584076,15.12505,2582.9,2581.9,0.71029544]
[1646749584277,15.12505,2582.9,2582.6,0.00466576]
[1646749585076,15.12505,2582.9,2582.4,1.02777318]
[1646749585525,15.12505,2582.9,2582.6,0.00466569]
[1646749586319,0.96876,2582.9,2582.4,1.02777318]
[1646749586516,1.0,2583.3,2582.4,1.02777318]
[1646749586517,2.0,2583.3,2582.6,0.00435645]
[1646749586716,1.0,2583.3,2582.6,0.00435645]
[1646749587018,0.468,2583.5,2582.6,0.00435645]
[1646749587019,1.0,2583.5,2582.6,0.00435645]